Workbook

Sheet Conjunto de datos
A1: Cuenta | B1: Categoría | C1: Descripción | D1: Asignado | E1: Modificado | F1: Codificado | G1: Monto certificado | H1: Comprometido | I1: Devengado | J1: Pagado | K1: Saldo por comprometer | L1: Saldo por devengar | M1: Saldo por pagar | N1: Porcentaje de ejecucion
A2: 5.1.01.05 | B2: Remuneraciones Unificadas | C2: Subp. 1.- Administracion General | D2: 316862 | E2: -8750 | F2: 308112 | G2: 230183.91 | H2: 230183.91 | I2: 202081.82 | J2: 201675.76 | K2: 77928.09 | L2: 106030.18 | M2: =+I2-J2 -> 406.06 | N2: =J2*100/D2 -> 63.65
A3: 5.1.01.06 | B3: Salarios Unificados | C3: Subp. 1.- Administracion General | D3: 6372 | E3: 3990 | F3: 10362 | G3: 6081.24 | H3: 6081.24 | I3: 5388 | J3: 5066.95 | K3: 4280.76 | L3: 4974 | M3: =+I3-J3 -> 321.05 | N3: =J3*100/D3 -> 79.52
A4: 5.1.02.03.01 | B4: Decimotercer Sueldo (Personal Permanente) | C4: Subp. 1.- Administracion General | D4: 25676 | E4: 23731.35 | F4: 49407.35 | G4: 2050.35 | H4: 2050.35 | I4: 2050.35 | J4: 2050.35 | K4: 47357 | L4: 47357 | M4: =+I4-J4 -> 0 | N4: =J4*100/D4 -> 7.99
A5: 5.1.02.03.02 | B5: Decimotercer Sueldo (Personal Eventual) | C5: Subp. 1.- Administracion General | D5: 755 | E5: 237.5 | F5: 992.5 | G5: 251.67 | H5: 251.67 | I5: 251.66 | J5: 251.66 | K5: 740.83 | L5: 740.84 | M5: =+I5-J5 -> 0 | N5: =J5*100/D5 -> 33.33
A6: 5.1.02.03.03 | B6: Decimotercer Sueldo (Concejales) | C6: Subp. 1.- Administracion General | D6: 9750 | E6: 7874.99 | F6: 17624.99 | G6: 1166.68 | H6: 1166.68 | I6: 1166.68 | J6: 1166.68 | K6: 16458.31 | L6: 16458.31 | M6: 0 | N6: =J6*100/D6 -> 11.97
A7: 5.1.02.04.01 | B7: Decimocuarto Sueldo (Personal Permanente) | C7: Subp. 1.- Administracion General | D7: 7131.12 | E7: 2460 | F7: 9591.12 | G7: 9288.15 | H7: 9288.15 | I7: 9288.15 | J7: 9288.15 | K7: 302.97 | L7: 302.97 | M7: 0 | N7: =J7*100/D7 -> 130.25
A8: 5.1.02.04.02 | B8: Decimocuarto Sueldo (Personal Eventual) | C8: Subp. 1.- Administracion General | D8: 475 | E8: 2767.84 | F8: 3242.84 | G8: 740.84 | H8: 740.84 | I8: 740.84 | J8: 740.84 | K8: 2502 | L8: 2502 | M8: 0 | N8: =J8*100/D8 -> 155.97
A9: 5.1.02.04.03 | B9: Decimo Cuarto Sueldo- Concejales | C9: Subp. 1.- Administracion General | D9: 2575 | E9: 0 | F9: 2575 | G9: 150 | H9: 150 | I9: 150 | J9: 150 | K9: 2425 | L9: 2425 | M9: 0 | N9: =J9*100/D9 -> 5.83
A10: 5.1.04.01 | B10: Por Cargas Familiares | C10: Subp. 1.- Administracion General | D10: 80 | E10: 0 | F10: 80 | G10: 31.76 | H10: 31.76 | I10: 31.76 | J10: 29.13 | K10: 48.24 | L10: 48.24 | M10: 2.63 | N10: =J10*100/D10 -> 36.41
A11: 5.1.04.08 | B11: Subsidio De Antiguedad | C11: Subp. 1.- Administracion General | D11: 111.48 | E11: 0 | F11: 111.48 | G11: 97.35 | H11: 97.35 | I11: 97.35 | J11: 162.84 | K11: 14.13 | L11: 14.13 | M11: -65.49 | N11: =J11*100/D11 -> 146.07
A12: 5.1.05.07 | B12: Honorarios | C12: Subp. 1.- Administracion General | D12: 0 | E12: 8750 | F12: 8750 | G12: 4199.96 | H12: 4199.96 | I12: 2449.96 | J12: 2379.96 | K12: 4550.04 | L12: 6300.04 | M12: 70 | N12: =J12*100/E12 -> 27.20
A13: 5.1.05.10 | B13: Servicios Personales por Contrato | C13: Subp. 1.- Administracion General | D13: 9060 | E13: 4592.67 | F13: 13652.67 | G13: 9091.84 | H13: 9091.84 | I13: 6331.47 | J13: 6568 | K13: 4560.83 | L13: 7321.2 | M13: -236.53 | N13: =J13*100/D13 -> 72.49
A14: 5.1.05.12 | B14: Subrogacion | C14: Subp. 1.- Administracion General | D14: 750 | E14: 0 | F14: 750 | G14: 0 | H14: 0 | I14: 0 | J14: 0 | K14: 750 | L14: 750 | M14: 0 | N14: =J14*100/D14 -> 0
A15: 5.1.05.13 | B15: Encargos | C15: Subp. 1.- Administracion General | D15: 500 | E15: 0 | F15: 500 | G15: 133 | H15: 133 | I15: 133 | J15: 117.77 | K15: 367 | L15: 367 | M15: 15.23 | N15: =J15*100/D15 -> 23.55
A16: 5.1.06.01.01 | B16: Aporte Patronal (Personal Permanente) | C16: Subp. 1.- Administracion General | D16: 22885.44 | E16: 332.5 | F16: 23217.94 | G16: 19287 | H16: 19287 | I16: 17250.61 | J16: 17250.61 | K16: 3930.94 | L16: 5967.33 | M16: 0 | N16: =J16*100/D16 -> 75.38
A17: 5.1.06.01.02 | B17: Aporte Patronal (Personal Eventual) | C17: Subp. 1.- Administracion General | D17: 1055.49 | E17: 332.03 | F17: 1387.52 | G17: 1065.4 | H17: 1065.4 | I17: 745.13 | J17: 720.33 | K17: 322.12 | L17: 642.39 | M17: 24.8 | N17: =J17*100/D17 -> 68.25
A18: 5.1.06.01.03 | B18: Aporte Patronal (Concejales) | C18: Subp. 1.- Administracion General | D18: 22885.44 | E18: 0 | F18: 22885.44 | G18: 8154.98 | H18: 8154.98 | I18: 7135.6 | J18: 7135.6 | K18: 14730.46 | L18: 15749.84 | M18: 0 | N18: =J18*100/D18 -> 31.18
A19: 5.1.06.02.01 | B19: Fondos De Reserva (Personal Permanente) | C19: Subp. 1.- Administracion General | D19: 25676 | E19: 332.5 | F19: 26008.5 | G19: 11934.09 | H19: 11934.09 | I19: 11871.2 | J19: 12106.54 | K19: 14074.41 | L19: 14137.3 | M19: -235.34 | N19: =J19*100/D19 -> 47.15
A20: 5.1.06.02.02 | B20: Fondos De Reserva (Personal Eventual) | C20: Subp. 1.- Administracion General | D20: 755 | E20: 237.5 | F20: 992.5 | G20: 299.04 | H20: 299.04 | I20: 251.56 | J20: 251.56 | K20: 693.46 | L20: 740.94 | M20: 0 | N20: =J20*100/D20 -> 33.32
A21: 5.1.06.02.03 | B21: Fondos De Reserva (Concejales) | C21: Subp. 1.- Administracion General | D21: 8750 | E21: 0 | F21: 8750 | G21: 1166.4 | H21: 1166.4 | I21: 1166.4 | J21: 728.97 | K21: 7583.6 | L21: 7583.6 | M21: 437.43 | N21: =J21*100/D21 -> 8.33
A22: 5.1.07.07 | B22: Compensacion Por Vacaciones No Gozadas Por Cesacion De Funciones | C22: Subp. 1.- Administracion General | D22: 5000 | E22: 237.5 | F22: 5237.5 | G22: 1439 | H22: 1439 | I22: 1439 | J22: 1439 | K22: 3798.5 | L22: 3798.5 | M22: 0 | N22: =J22*100/D22 -> 28.78
A23: 5.3.01.01 | B23: Agua Potable | C23: Subp. 1.- Administracion General | D23: 4570.12 | E23: 4800 | F23: 9370.12 | G23: 5660.94 | H23: 5660.94 | I23: 5370.3 | J23: 5370.3 | K23: 3709.18 | L23: 3999.82 | M23: 0 | N23: =J23*100/D23 -> 117.51
A24: 5.3.01.04 | B24: Energía Eléctrica | C24: Subp. 1.- Administracion General | D24: 5692.81 | E24: 1500 | F24: 7192.81 | G24: 5320.72 | H24: 5320.72 | I24: 4848.91 | J24: 4848.91 | K24: 1872.09 | L24: 2343.9 | M24: 0 | N24: =J24*100/D24 -> 85.18
A25: 5.3.01.05 | B25: Telecomunicaciones | C25: Subp. 1.- Administracion General | D25: 1724.58 | E25: 5000 | F25: 6724.58 | G25: 4722.93 | H25: 4722.93 | I25: 4288.73 | J25: 4288.73 | K25: 2001.65 | L25: 2435.85 | M25: 0 | N25: =J25*100/D25 -> 248.68
A26: 5.3.01.06 | B26: Servicio de Correo | C26: Subp. 1.- Administracion General | D26: 20 | E26: 0 | F26: 20 | G26: 0 | H26: 0 | I26: 0 | J26: 0 | K26: 20 | L26: 20 | M26: 0 | N26: =J26*100/D26 -> 0
A27: 5.3.02.04 | B27: Edición, Impresión, Reproducción y Publicaciones | C27: Subp. 1.- Administracion General | D27: 5000 | E27: 0 | F27: 5000 | G27: 3234.28 | H27: 3234.28 | I27: 3078.04 | J27: 3021.31 | K27: 1765.72 | L27: 1921.96 | M27: 56.73 | N27: =J27*100/D27 -> 60.43
A28: 5.3.02.07 | B28: Difusión, Información y Publicidad | C28: Subp. 1.- Administracion General | D28: 16000 | E28: -300 | F28: 15700 | G28: 15670 | H28: 15670 | I28: 0 | J28: 0 | K28: 30 | L28: 15700 | M28: 0 | N28: =J28*100/D28 -> 0
A29: 5.3.02.46 | B29: Servicios De Identificación, Marcación, Autentificación, Rastreo, Monitoreo, Seguimiento | C29: Subp. 1.- Administracion General | D29: 800 | E29: 0 | F29: 800 | G29: 800 | H29: 800 | I29: 629.17 | J29: 629.17 | K29: 0 | L29: 170.83 | M29: 0 | N29: =J29*100/D29 -> 78.65
A30: 5.3.02.55 | B30: Combustible | C30: Subp. 1.- Administracion General | D30: 7000 | E30: 0 | F30: 7000 | G30: 5263.58 | H30: 5263.58 | I30: 3594.02 | J30: 3594.02 | K30: 1736.42 | L30: 3405.98 | M30: 0 | N30: =J30*100/D30 -> 51.34
A31: 5.3.03.01 | B31: Pasajes al Interior | C31: Subp. 1.- Administracion General | D31: 300 | E31: 0 | F31: 300 | G31: 24.49 | H31: 24.49 | I31: 18.49 | J31: 18.49 | K31: 275.51 | L31: 281.51 | M31: 0 | N31: =J31*100/D31 -> 6.16
A32: 5.3.03.03 | B32: Viáticos y Subsistencias en el Interior | C32: Subp. 1.- Administracion General | D32: 3000 | E32: -2000 | F32: 1000 | G32: 992.44 | H32: 992.44 | I32: 860.31 | J32: 860.31 | K32: 7.56 | L32: 139.69 | M32: 0 | N32: =J32*100/D32 -> 28.68
A33: 5.3.04.02 | B33: Edificios, Locales, Residencias y Cableado Estructurado (Instalación, Mantenimiento y Reparación) | C33: Subp. 1.- Administracion General | D33: 600 | E33: 0 | F33: 600 | G33: 0 | H33: 0 | I33: 0 | J33: 0 | K33: 600 | L33: 600 | M33: 0 | N33: =J33*100/D33 -> 0
A34: 5.3.04.03 | B34: Mobiliarios | C34: Subp. 1.- Administracion General | D34: 500 | E34: 0 | F34: 500 | G34: 0 | H34: 0 | I34: 0 | J34: 0 | K34: 500 | L34: 500 | M34: 0 | N34: =J34*100/D34 -> 0
A35: 5.3.04.04 | B35: Maquinarias y Equipos | C35: Subp. 1.- Administracion General | D35: 4000 | E35: -641 | F35: 3359 | G35: 1250.08 | H35: 1250.08 | I35: 625.02 | J35: 625.02 | K35: 2108.92 | L35: 2733.98 | M35: 0 | N35: =J35*100/D35 -> 15.63
A36: 5.3.04.05 | B36: Vehículos (Servicio para Mantenimiento y Reparación) | C36: Subp. 1.- Administracion General | D36: 400 | E36: 0 | F36: 400 | G36: 400 | H36: 400 | I36: 0 | J36: 0 | K36: 0 | L36: 400 | M36: 0 | N36: =J36*100/D36 -> 0
A37: 5.3.06.01 | B37: Consultoría, Asesoría e Investigación Especializada | C37: Subp. 1.- Administracion General | D37: 20000 | E37: 10000 | F37: 30000 | G37: 0 | H37: 0 | I37: 0 | J37: 0 | K37: 30000 | L37: 30000 | M37: 0 | N37: =J37*100/D37 -> 0
A38: 5.3.06.06 | B38: Honorarios Por Contratos Civiles De Servicios | C38: Subp. 1.- Administracion General | D38: 0 | E38: 16463.8 | F38: 16463.8 | G38: 7200 | H38: 7200 | I38: 1200 | J38: 1080 | K38: 9263.8 | L38: 15263.8 | M38: 120 | N38: =J38*100/E38 -> 6.56
A39: 5.3.06.12 | B39: Capacitación A Servidores Públicos | C39: Subp. 1.- Administracion General | D39: 10 | E39: 0 | F39: 10 | G39: 0 | H39: 0 | I39: 0 | J39: 0 | K39: 10 | L39: 10 | M39: 0 | N39: =J39*100/D39 -> 0
A40: 5.3.07.02 | B40: Arrendamiento y Licencias de Uso de Paquetes Informáticos | C40: Subp. 1.- Administracion General | D40: 6700 | E40: 7000 | F40: 13700 | G40: 255.98 | H40: 255.98 | I40: 255.98 | J40: 255.98 | K40: 13444.02 | L40: 13444.02 | M40: 0 | N40: =J40*100/D40 -> 3.82
A41: 5.3.07.04 | B41: Mantenimiento y Reparación de Equipos y Sistemas Informáticos | C41: Subp. 1.- Administracion General | D41: 1000 | E41: 0 | F41: 1000 | G41: 0 | H41: 0 | I41: 0 | J41: 0 | K41: 1000 | L41: 1000 | M41: 0 | N41: =J41*100/D41 -> 0
A42: 5.3.08.02.01 | B42: Vestuario Y Lenceria | C42: Subp. 1.- Administracion General | D42: 4000 | E42: 0 | F42: 4000 | G42: 0 | H42: 0 | I42: 0 | J42: 0 | K42: 4000 | L42: 4000 | M42: 0 | N42: =J42*100/D42 -> 0
A43: 5.3.08.03 | B43: Lubricantes | C43: Subp. 1.- Administracion General | D43: 1200 | E43: 0 | F43: 1200 | G43: 1188.36 | H43: 1188.36 | I43: 1188.36 | J43: 1188.36 | K43: 11.64 | L43: 11.64 | M43: 0 | N43: =J43*100/D43 -> 99.03
A44: 5.3.08.04 | B44: Materiales de Oficina | C44: Subp. 1.- Administracion General | D44: 625 | E44: 0 | F44: 625 | G44: 0 | H44: 0 | I44: 0 | J44: 0 | K44: 625 | L44: 625 | M44: 0 | N44: =J44*100/D44 -> 0
A45: 5.3.08.05 | B45: Materiales de Aseo | C45: Subp. 1.- Administracion General | D45: 490 | E45: 0 | F45: 490 | G45: 0 | H45: 0 | I45: 0 | J45: 0 | K45: 490 | L45: 490 | M45: 0 | N45: =J45*100/D45 -> 0
A46: 5.3.08.07 | B46: Materiales de Impresión, Fotografía, Reproducción y Publicaciones | C46: Subp. 1.- Administracion General | D46: 2000 | E46: 0 | F46: 2000 | G46: 1990.48 | H46: 1990.48 | I46: 21.48 | J46: 21.48 | K46: 9.52 | L46: 1978.52 | M46: 0 | N46: =J46*100/D46 -> 1.07
A47: 5.3.08.11 | B47: Materiales de Construcción, Eléctricos, Plomería y Carpintería | C47: Subp. 1.- Administracion General | D47: 500 | E47: 0 | F47: 500 | G47: 97.94 | H47: 97.94 | I47: 97.94 | J47: 92.93 | K47: 402.06 | L47: 402.06 | M47: 5.01 | N47: =J47*100/D47 -> 18.59
A48: 5.3.08.13 | B48: Repuestos y Accesorios | C48: Subp. 1.- Administracion General | D48: 1200 | E48: 0 | F48: 1200 | G48: 1200 | H48: 1200 | I48: 0 | J48: 0 | K48: 0 | L48: 1200 | M48: 0 | N48: =J48*100/D48 -> 0
A49: 5.3.14.03 | B49: Mobiliarios | C49: Subp. 1.- Administracion General | D49: 8000 | E49: -5000 | F49: 3000 | G49: 0 | H49: 0 | I49: 0 | J49: 0 | K49: 3000 | L49: 3000 | M49: 0 | N49: =J49*100/D49 -> 0
A50: 5.3.14.04 | B50: Maquinarias y Equipos | C50: Subp. 1.- Administracion General | D50: 100 | E50: 0 | F50: 100 | G50: 0 | H50: 0 | I50: 0 | J50: 0 | K50: 100 | L50: 100 | M50: 0 | N50: =J50*100/D50 -> 0
A51: 5.3.14.06 | B51: Herramientas y Equipos Menores | C51: Subp. 1.- Administracion General | D51: 100 | E51: 0 | F51: 100 | G51: 0 | H51: 0 | I51: 0 | J51: 0 | K51: 100 | L51: 100 | M51: 0 | N51: =J51*100/D51 -> 0
A52: 5.3.14.07 | B52: Equipos, Sistemas Y Paquetes Informáticos | C52: Subp. 1.- Administracion General | D52: 100 | E52: 0 | F52: 100 | G52: 16.09 | H52: 16.09 | I52: 16.09 | J52: 16.09 | K52: 83.91 | L52: 83.91 | M52: 0 | N52: =J52*100/D52 -> 16.09
A53: 5.7.01.02.01 | B53: Tasas Generales, Impuestos, Contribuciones, Permisos, Licencias Y Patentes | C53: Subp. 1.- Administracion General | D53: 700 | E53: 0 | F53: 700 | G53: 0 | H53: 0 | I53: 0 | J53: 0 | K53: 700 | L53: 700 | M53: 0 | N53: =J53*100/D53 -> 0
A54: 5.7.02.01.01 | B54: Segruro (Personal) | C54: Subp. 1.- Administracion General | D54: 1200 | E54: 0 | F54: 1200 | G54: 1000 | H54: 1000 | I54: 1000 | J54: 1000 | K54: 200 | L54: 200 | M54: 0 | N54: =J54*100/D54 -> 83.33
A55: 5.7.02.01.02 | B55: Seguros (Bienes) | C55: Subp. 1.- Administracion General | D55: 2500 | E55: 0 | F55: 2500 | G55: 1597.99 | H55: 1597.99 | I55: 1597.99 | J55: 1597.99 | K55: 902.01 | L55: 902.01 | M55: 0 | N55: =J55*100/D55 -> 63.92
A56: 5.7.02.03 | B56: Comisiones Bancarias | C56: Subp. 1.- Administracion General | D56: 50 | E56: 0 | F56: 50 | G56: 27.36 | H56: 27.36 | I56: 27.14 | J56: 27.14 | K56: 22.64 | L56: 22.86 | M56: 0 | N56: =J56*100/D56 -> 54.28
A57: 5.7.02.06 | B57: Costas Judiciales, Trámites Notariales, Legalización De Documentos Y Arreglos Extrajudiciales | C57: Subp. 1.- Administracion General | D57: 300 | E57: 0 | F57: 300 | G57: 0 | H57: 0 | I57: 0 | J57: 0 | K57: 300 | L57: 300 | M57: 0 | N57: =J57*100/D57 -> 0
A58: 7.1.01.06 | B58: Salarios Unificados | C58: Subp. 1.- Administracion General | D58: 0 | E58: 0 | F58: 0 | G58: 0 | H58: 0 | I58: 0 | J58: 0.57 | K58: 0 | L58: 0 | M58: -0.57 | N58: 0
A59: 7.1.02.04.02 | B59: Decimocuarto Sueldo (Personal Eventual) | C59: Subp. 1.- Administracion General | D59: 0 | E59: 0 | F59: 0 | G59: 0 | H59: 0 | I59: 0 | J59: 454.89 | K59: 0 | L59: 0 | M59: -454.89 | N59: 0
A60: 7.1.05.10 | B60: Servicios Personales Por Contrato | C60: Subp. 1.- Administracion General | D60: 0 | E60: 0 | F60: 0 | G60: 0 | H60: 0 | I60: 0 | J60: 0.57 | K60: 0 | L60: 0 | M60: -0.57 | N60: 0
A61: 7.1.06.02.02 | B61: Fondos De Reserva (Personal Eventual) | C61: Subp. 1.- Administracion General | D61: 0 | E61: 0 | F61: 0 | G61: 0 | H61: 0 | I61: 0 | J61: 47.48 | K61: 0 | L61: 0 | M61: -47.48 | N61: 0
A62: 8.4.01.03.01 | B62: Mobiliario | C62: Subp. 1.- Administracion General | D62: 500 | E62: 0 | F62: 500 | G62: 390 | H62: 390 | I62: 390 | J62: 390 | K62: 110 | L62: 110 | M62: 0 | N62: =J62*100/D62 -> 78.00
A63: 8.4.01.04.01 | B63: Maquinaria Y Equipo | C63: Subp. 1.- Administracion General | D63: 8000 | E63: -8000 | F63: 0 | G63: 0 | H63: 0 | I63: 0 | J63: 0 | K63: 0 | L63: 0 | M63: 0 | N63: 0
A64: 8.4.01.05 | B64: Vehículos | C64: Subp. 1.- Administracion General | D64: 32000 | E64: 16000 | F64: 48000 | G64: 0 | H64: 0 | I64: 0 | J64: 0 | K64: 48000 | L64: 48000 | M64: 0 | N64: 0
A65: 8.4.01.07.01 | B65: Equipos, Sistemas Y Paquetes Informáticos | C65: Subp. 1.- Administracion General | D65: 10000 | E65: 38641 | F65: 48641 | G65: 19398.22 | H65: 19398.22 | I65: 15863.21 | J65: 15863.21 | K65: 29242.78 | L65: 32777.79 | M65: 0 | N65: =J65*100/D65 -> 158.63
A66: 8.4.01.11 | B66: Partes Y Repuestos | C66: Subp. 1.- Administracion General | D66: 100 | E66: 0 | F66: 100 | G66: 0 | H66: 0 | I66: 0 | J66: 0 | K66: 100 | L66: 100 | M66: 0 | N66: =J66*100/D66 -> 0
A67: 5.1.01.06 | B67: Salarios Unificados | C67: Subp. 2.-gestión Administrativa Técnica | D67: 49392 | E67: 0 | F67: 49392 | G67: 36811.86 | H67: 36811.86 | I67: 32384.13 | J67: 32672.33 | K67: 12580.14 | L67: 17007.87 | M67: =+I67-J67 -> -288.2 | N67: =J67*100/D67 -> 66.15
A68: 5.1.02.03.01 | B68: Decimotercer Sueldo (Personal Permanente) | C68: Subp. 2.-gestión Administrativa Técnica | D68: 4196 | E68: 24 | F68: 4220 | G68: 734 | H68: 734 | I68: 734 | J68: 689.75 | K68: 3486 | L68: 3486 | M68: 44.25 | N68: =J68*100/D68 -> 16.44
A69: 5.1.02.04.01 | B69: Decimocuarto Sueldo (Personal Permanente) | C69: Subp. 2.-gestión Administrativa Técnica | D69: 3800 | E69: 0 | F69: 3800 | G69: 3526.64 | H69: 3526.64 | I69: 3526.64 | J69: 3488.31 | K69: 273.36 | L69: 273.36 | M69: 38.33 | N69: =J69*100/D69 -> 91.80
A70: 5.1.03.06 | B70: Refrigerio | C70: Subp. 2.-gestión Administrativa Técnica | D70: 300 | E70: 0 | F70: 300 | G70: 0 | H70: 0 | I70: 0 | J70: 0 | K70: 300 | L70: 300 | M70: 0 | N70: =J70*100/D70 -> 0
A71: 5.1.04.01 | B71: Por Cargas Familiares | C71: Subp. 2.-gestión Administrativa Técnica | D71: 400 | E71: 0 | F71: 400 | G71: 288.86 | H71: 288.86 | I71: 288.86 | J71: 278.24 | K71: 111.14 | L71: 111.14 | M71: 10.62 | N71: =J71*100/D71 -> 69.56
A72: 5.1.04.08 | B72: Subsidio De Antiguedad | C72: Subp. 2.-gestión Administrativa Técnica | D72: 400 | E72: 100 | F72: 500 | G72: 457.56 | H72: 457.56 | I72: 457.56 | J72: 457.56 | K72: 42.44 | L72: 42.44 | M72: 0 | N72: =J72*100/E72 -> 457.56
A73: 5.1.05.09 | B73: Horas Extraordinarias y Suplementarias | C73: Subp. 2.-gestión Administrativa Técnica | D73: 200 | E73: 0 | F73: 200 | G73: 0 | H73: 0 | I73: 0 | J73: 0 | K73: 200 | L73: 200 | M73: 0 | N73: =J73*100/D73 -> 0
A74: 5.1.06.01.01 | B74: Aporte Patronal (Personal Permanente) | C74: Subp. 2.-gestión Administrativa Técnica | D74: 6117.77 | E74: 0 | F74: 6117.77 | G74: 4903.69 | H74: 4903.69 | I74: 4427.03 | J74: 3917.23 | K74: 1214.08 | L74: 1690.74 | M74: 509.8 | N74: =J74*100/D74 -> 64.03
A75: 5.1.06.02.01 | B75: Fondos De Reserva (Personal Permanente) | C75: Subp. 2.-gestión Administrativa Técnica | D75: 4196 | E75: 0 | F75: 4196 | G75: 2693.23 | H75: 2693.23 | I75: 2693.23 | J75: 2693.23 | K75: 1502.77 | L75: 1502.77 | M75: 0 | N75: =J75*100/D75 -> 64.19
A76: 5.1.07.06 | B76: Por Jubilación | C76: Subp. 2.-gestión Administrativa Técnica | D76: 0 | E76: 46700 | F76: 46700 | G76: 46020 | H76: 46020 | I76: 46020 | J76: 46020 | K76: 680 | L76: 680 | M76: 0 | N76: =J76*100/E76 -> 98.54
A77: 5.3.01.05 | B77: Telecomunicaciones | C77: Subp. 2.-gestión Administrativa Técnica | D77: 100 | E77: 0 | F77: 100 | G77: 0 | H77: 0 | I77: 0 | J77: 0 | K77: 100 | L77: 100 | M77: 0 | N77: =J77*100/D77 -> 0
A78: 5.3.01.06 | B78: Servicio De Correo | C78: Subp. 2.-gestión Administrativa Técnica | D78: 50 | E78: 0 | F78: 50 | G78: 0 | H78: 0 | I78: 0 | J78: 0 | K78: 50 | L78: 50 | M78: 0 | N78: =J78*100/D78 -> 0
A79: 5.3.02.04 | B79: Edición, Impresión, Reproducción Y Publicaciones | C79: Subp. 2.-gestión Administrativa Técnica | D79: 500 | E79: 0 | F79: 500 | G79: 0 | H79: 0 | I79: 0 | J79: 0 | K79: 500 | L79: 500 | M79: 0 | N79: =J79*100/D79 -> 0
A80: 5.3.02.07 | B80: Difusión, Información Y Publicidad | C80: Subp. 2.-gestión Administrativa Técnica | D80: 100 | E80: 0 | F80: 100 | G80: 0 | H80: 0 | I80: 0 | J80: 0 | K80: 100 | L80: 100 | M80: 0 | N80: =J80*100/D80 -> 0
A81: 5.3.02.46 | B81: Servicios De Identificación, Marcación, Autentificación, Rastreo, Monitoreo, Seguimiento | C81: Subp. 2.-gestión Administrativa Técnica | D81: 8500 | E81: 0 | F81: 8500 | G81: 4950 | H81: 4950 | I81: 1816.66 | J81: 1811.7 | K81: 3550 | L81: 6683.34 | M81: 4.96 | N81: =J81*100/D81 -> 21.31
A82: 5.3.02.55 | B82: Combustible | C82: Subp. 2.-gestión Administrativa Técnica | D82: 2700 | E82: 0 | F82: 2700 | G82: 2550 | H82: 2550 | I82: 2336.63 | J82: 2336.63 | K82: 150 | L82: 363.37 | M82: 0 | N82: =J82*100/D82 -> 86.54
A83: 5.3.03.01 | B83: Pasajes Al Interior | C83: Subp. 2.-gestión Administrativa Técnica | D83: 200 | E83: 0 | F83: 200 | G83: 12.25 | H83: 12.25 | I83: 8 | J83: 8 | K83: 187.75 | L83: 192 | M83: 0 | N83: =J83*100/D83 -> 4.00
A84: 5.3.03.03 | B84: Viáticos Y Subsistencias En El Interior | C84: Subp. 2.-gestión Administrativa Técnica | D84: 200 | E84: 0 | F84: 200 | G84: 134.6 | H84: 134.6 | I84: 90.6 | J84: 90.6 | K84: 65.4 | L84: 109.4 | M84: 0 | N84: =J84*100/D84 -> 45.30
A85: 5.3.04.02 | B85: Edificios, Locales, Residencias Y Cableado Estructurado (Instalación, Mantenimiento Y Reparación) | C85: Subp. 2.-gestión Administrativa Técnica | D85: 100 | E85: 0 | F85: 100 | G85: 0 | H85: 0 | I85: 0 | J85: 0 | K85: 100 | L85: 100 | M85: 0 | N85: =J85*100/D85 -> 0
A86: 5.3.04.05 | B86: Vehículos (Servicio para Mantenimiento y Reparación) | C86: Subp. 2.-gestión Administrativa Técnica | D86: 1700 | E86: 2700 | F86: 4400 | G86: 4374.5 | H86: 4374.5 | I86: 57.5 | J86: 57.5 | K86: 25.5 | L86: 4342.5 | M86: 0 | N86: =J86*100/D86 -> 3.38
A87: 5.3.06.12 | B87: Capacitación A Servidores Públicos | C87: Subp. 2.-gestión Administrativa Técnica | D87: 500 | E87: 0 | F87: 500 | G87: 0 | H87: 0 | I87: 0 | J87: 0 | K87: 500 | L87: 500 | M87: 0 | N87: =J87*100/D87 -> 0
A88: 5.3.07.04 | B88: Mantenimiento Y Reparación De Equipos Y Sistemas Informáticos | C88: Subp. 2.-gestión Administrativa Técnica | D88: 500 | E88: 0 | F88: 500 | G88: 0 | H88: 0 | I88: 0 | J88: 0 | K88: 500 | L88: 500 | M88: 0 | N88: =J88*100/D88 -> 0
A89: 5.3.08.02.01 | B89: Vestuario Y Lenceria | C89: Subp. 2.-gestión Administrativa Técnica | D89: 5000 | E89: 0 | F89: 5000 | G89: 0 | H89: 0 | I89: 0 | J89: 0 | K89: 5000 | L89: 5000 | M89: 0 | N89: =J89*100/D89 -> 0
A90: 5.3.08.03 | B90: Lubricantes | C90: Subp. 2.-gestión Administrativa Técnica | D90: 100 | E90: 0 | F90: 100 | G90: 0 | H90: 0 | I90: 0 | J90: 0 | K90: 100 | L90: 100 | M90: 0 | N90: =J90*100/D90 -> 0
A91: 5.3.08.04 | B91: Materiales De Oficina | C91: Subp. 2.-gestión Administrativa Técnica | D91: 50 | E91: 0 | F91: 50 | G91: 0 | H91: 0 | I91: 0 | J91: 0 | K91: 50 | L91: 50 | M91: 0 | N91: =J91*100/D91 -> 0
A92: 5.3.08.05 | B92: Materiales De Aseo | C92: Subp. 2.-gestión Administrativa Técnica | D92: 25000 | E92: -2700 | F92: 22300 | G92: 12294.88 | H92: 12294.88 | I92: 9702.8 | J92: 9702.8 | K92: 10005.12 | L92: 12597.2 | M92: 0 | N92: =J92*100/D92 -> 38.81
A93: 5.3.08.07 | B93: Materiales De Impresión, Fotografía, Reproducción Y Publicaciones | C93: Subp. 2.-gestión Administrativa Técnica | D93: 500 | E93: 0 | F93: 500 | G93: 0 | H93: 0 | I93: 0 | J93: 0 | K93: 500 | L93: 500 | M93: 0 | N93: =J93*100/D93 -> 0
A94: 5.3.08.11 | B94: Materiales De Construcción, Eléctricos, Plomería Y Carpintería | C94: Subp. 2.-gestión Administrativa Técnica | D94: 250 | E94: 0 | F94: 250 | G94: 0 | H94: 0 | I94: 0 | J94: 0 | K94: 250 | L94: 250 | M94: 0 | N94: =J94*100/D94 -> 0
A95: 5.3.08.13 | B95: Repuestos Y Accesorios | C95: Subp. 2.-gestión Administrativa Técnica | D95: 7480 | E95: 0 | F95: 7480 | G95: 1279.4 | H95: 1279.4 | I95: 17.4 | J95: 17.4 | K95: 6200.6 | L95: 7462.6 | M95: 0 | N95: =J95*100/D95 -> 0.23
A96: 5.3.14.06 | B96: Herramientas Y Equipos Menores | C96: Subp. 2.-gestión Administrativa Técnica | D96: 450 | E96: 0 | F96: 450 | G96: 0 | H96: 0 | I96: 0 | J96: 0 | K96: 450 | L96: 450 | M96: 0 | N96: =J96*100/D96 -> 0
A97: 5.7.01.02.02 | B97: Matriculación De Vehículos | C97: Subp. 2.-gestión Administrativa Técnica | D97: 1500 | E97: 0 | F97: 1500 | G97: 1476.56 | H97: 1476.56 | I97: 1476.56 | J97: 1476.56 | K97: 23.44 | L97: 23.44 | M97: 0 | N97: =J97*100/D97 -> 98.44
A98: 5.7.02.01.01 | B98: Segruro (Personal) | C98: Subp. 2.-gestión Administrativa Técnica | D98: 5000 | E98: -100 | F98: 4900 | G98: 2500 | H98: 2500 | I98: 2500 | J98: 2500 | K98: 2400 | L98: 2400 | M98: 0 | N98: =J98*100/D98 -> 50.00
A99: 5.7.02.01.02 | B99: Seguros (Bienes) | C99: Subp. 2.-gestión Administrativa Técnica | D99: 3323.1 | E99: 0 | F99: 3323.1 | G99: 2000 | H99: 2000 | I99: 2000 | J99: 2000 | K99: 1323.1 | L99: 1323.1 | M99: 0 | N99: =J99*100/D99 -> 60.18
A100: 5.8.02.09 | B100: A Jubilados Patronales | C100: Subp. 2.-gestión Administrativa Técnica | D100: 8288 | E100: 0 | F100: 8288 | G100: 5698 | H100: 5698 | I100: 4662 | J100: 4662 | K100: 2590 | L100: 3626 | M100: 0 | N100: 56.25
A101: 8.4.01.03.01 | B101: Mobiliario | C101: Subp. 2.-gestión Administrativa Técnica | D101: 2000 | E101: 0 | F101: 2000 | G101: 1170 | H101: 1170 | I101: 1170 | J101: 1170 | K101: 830 | L101: 830 | M101: 0 | N101: =J101*100/D101 -> 58.50
A102: 8.4.01.06 | B102: Herramientas | C102: Subp. 2.-gestión Administrativa Técnica | D102: 300 | E102: 0 | F102: 300 | G102: 0 | H102: 0 | I102: 0 | J102: 0 | K102: 300 | L102: 300 | M102: 0 | N102: =J102*100/D102 -> 0
A103: 5.1.01.05 | B103: Remuneraciones Unificadas | C103: Sub.- 3 Seguridad Y Salud Ocupacional | D103: 24125.11 | E103: 4164.89 | F103: 28290 | G103: 20905.78 | H103: 20905.78 | I103: 18290 | J103: 18406.05 | K103: 7384.22 | L103: 10000 | M103: -116.05 | N103: =J103*100/D103 -> 76.29
A104: 5.1.02.03.01 | B104: Decimotercer Sueldo (Personal Permanente) | C104: Sub.- 3 Seguridad Y Salud Ocupacional | D104: 1680 | E104: 1190 | F104: 2870 | G104: 370 | H104: 370 | I104: 370 | J104: 414.25 | K104: 2500 | L104: 2500 | M104: -44.25 | N104: =J104*100/D104 -> 24.66
A105: 5.1.02.03.02 | B105: Decimotercer Sueldo (Personal Eventual) | C105: Sub.- 3 Seguridad Y Salud Ocupacional | D105: 570 | E105: 250 | F105: 820 | G105: 0 | H105: 0 | I105: 0 | J105: 0 | K105: 820 | L105: 820 | M105: 0 | N105: =J105*100/D105 -> 0
A106: 5.1.02.04.01 | B106: Decimocuarto Sueldo (Personal Permanente) | C106: Sub.- 3 Seguridad Y Salud Ocupacional | D106: 1425 | E106: 0 | F106: 1425 | G106: 1376.17 | H106: 1376.17 | I106: 1376.17 | J106: 1414.5 | K106: 48.83 | L106: 48.83 | M106: -38.33 | N106: =J106*100/D106 -> 99.26
A107: 5.1.02.04.02 | B107: Decimocuarto Sueldo (Personal Eventual) | C107: Sub.- 3 Seguridad Y Salud Ocupacional | D107: 475 | E107: 0 | F107: 475 | G107: 460 | H107: 460 | I107: 460 | J107: 460 | K107: 15 | L107: 15 | M107: 0 | N107: =J107*100/D107 -> 96.84
A108: 5.1.05.10 | B108: Servicios Personales Por Contrato | C108: Sub.- 3 Seguridad Y Salud Ocupacional | D108: 16680 | E108: 0 | F108: 16680 | G108: 9811.97 | H108: 9811.97 | I108: 8103.67 | J108: 8047.1 | K108: 6868.03 | L108: 8576.33 | M108: 56.57 | N108: =J108*100/D108 -> 48.24
A109: 5.1.06.01.01 | B109: Aporte Patronal (Personal Permanente) | C109: Sub.- 3 Seguridad Y Salud Ocupacional | D109: 2810.58 | E109: 0 | F109: 2810.58 | G109: 2422.05 | H109: 2422.05 | I109: 2130.8 | J109: 2130.8 | K109: 388.53 | L109: 679.78 | M109: 0 | N109: 75.81
A110: 5.1.06.01.02 | B110: Aporte Patronal (Personal Eventual) | C110: Sub.- 3 Seguridad Y Salud Ocupacional | D110: 1943.22 | E110: 0 | F110: 1943.22 | G110: 1118.12 | H110: 1118.12 | I110: 1022.59 | J110: 965.04 | K110: 825.1 | L110: 920.63 | M110: 57.55 | N110: =J110*100/D110 -> 49.66
A111: 5.1.06.02.01 | B111: Fondos De Reserva (Personal Permanente) | C111: Sub.- 3 Seguridad Y Salud Ocupacional | D111: 1930 | E111: 0 | F111: 1930 | G111: 751.88 | H111: 751.88 | I111: 751.88 | J111: 814.8 | K111: 1178.12 | L111: 1178.12 | M111: -62.92 | N111: =J111*100/D111 -> 42.22
A112: 5.1.06.02.02 | B112: Fondos De Reserva (Personal Eventual) | C112: Sub.- 3 Seguridad Y Salud Ocupacional | D112: 1390 | E112: 0 | F112: 1390 | G112: 701.24 | H112: 701.24 | I112: 537.41 | J112: 537.41 | K112: 688.76 | L112: 852.59 | M112: 0 | N112: =J112*100/D112 -> 38.66
A113: 5.1.07.07 | B113: Compensacion Por Vacaciones No Gozadas Por Cesacion De Funciones | C113: Sub.- 3 Seguridad Y Salud Ocupacional | D113: 500 | E113: 550 | F113: 1050 | G113: 925 | H113: 925 | I113: 925 | J113: 925 | K113: 125 | L113: 125 | M113: 0 | N113: =J113*100/D113 -> 185.00
A114: 5.3.01.05 | B114: Telecomunicaciones | C114: Sub.- 3 Seguridad Y Salud Ocupacional | D114: 10 | E114: 0 | F114: 10 | G114: 0 | H114: 0 | I114: 0 | J114: 0 | K114: 10 | L114: 10 | M114: 0 | N114: =J114*100/D114 -> 0
A115: 5.3.01.06 | B115: Servicio De Correo | C115: Sub.- 3 Seguridad Y Salud Ocupacional | D115: 20 | E115: 0 | F115: 20 | G115: 0 | H115: 0 | I115: 0 | J115: 0 | K115: 20 | L115: 20 | M115: 0 | N115: =J115*100/D115 -> 0
A116: 5.3.02.04 | B116: Edición, Impresión, Reproducción Y Publicaciones | C116: Sub.- 3 Seguridad Y Salud Ocupacional | D116: 500 | E116: 400 | F116: 900 | G116: 719 | H116: 719 | I116: 719 | J116: 693.04 | K116: 181 | L116: 181 | M116: 25.96 | N116: =J116*100/D116 -> 138.61
A117: 5.3.02.07 | B117: Difusión, Información Y Publicidad | C117: Sub.- 3 Seguridad Y Salud Ocupacional | D117: 500 | E117: -400 | F117: 100 | G117: 0 | H117: 0 | I117: 0 | J117: 0 | K117: 100 | L117: 100 | M117: 0 | N117: =J117*100/D117 -> 0
A118: 5.3.02.46 | B118: Servicios De Identificación, Marcación, Autentificación, Rastreo, Monitoreo, Seguimiento | C118: Sub.- 3 Seguridad Y Salud Ocupacional | D118: 200 | E118: 0 | F118: 200 | G118: 200 | H118: 200 | I118: 33.32 | J118: 33.32 | K118: 0 | L118: 166.68 | M118: 0 | N118: 16.66
A119: 5.3.03.01 | B119: Pasajes Al Interior | C119: Sub.- 3 Seguridad Y Salud Ocupacional | D119: 50 | E119: 0 | F119: 50 | G119: 0 | H119: 0 | I119: 0 | J119: 0 | K119: 50 | L119: 50 | M119: 0 | N119: =J119*100/D119 -> 0
A120: 5.3.03.03 | B120: Viáticos Y Subsistencias En El Interior | C120: Sub.- 3 Seguridad Y Salud Ocupacional | D120: 100 | E120: 0 | F120: 100 | G120: 0 | H120: 0 | I120: 0 | J120: 0 | K120: 100 | L120: 100 | M120: 0 | N120: =J120*100/D120 -> 0
A121: 5.3.04.02 | B121: Edificios, Locales, Residencias Y Cableado Estructurado (Instalación, Mantenimiento Y Reparación) | C121: Sub.- 3 Seguridad Y Salud Ocupacional | D121: 2000 | E121: -550 | F121: 1450 | G121: 0 | H121: 0 | I121: 0 | J121: 0 | K121: 1450 | L121: 1450 | M121: 0 | N121: =J121*100/D121 -> 0
A122: 5.3.04.04 | B122: Maquinarias Y Equipos | C122: Sub.- 3 Seguridad Y Salud Ocupacional | D122: 50 | E122: 0 | F122: 50 | G122: 0 | H122: 0 | I122: 0 | J122: 0 | K122: 50 | L122: 50 | M122: 0 | N122: =J122*100/D122 -> 0
A123: 5.3.06.12 | B123: Capacitación A Servidores Públicos | C123: Sub.- 3 Seguridad Y Salud Ocupacional | D123: 1500 | E123: 0 | F123: 1500 | G123: 0 | H123: 0 | I123: 0 | J123: 0 | K123: 1500 | L123: 1500 | M123: 0 | N123: =J123*100/D123 -> 0
A124: 5.3.07.04 | B124: Mantenimiento Y Reparación De Equipos Y Sistemas Informáticos | C124: Sub.- 3 Seguridad Y Salud Ocupacional | D124: 500 | E124: 0 | F124: 500 | G124: 0 | H124: 0 | I124: 0 | J124: 0 | K124: 500 | L124: 500 | M124: 0 | N124: 0
A125: 5.3.08.01 | B125: Alimentos Y Bebidas | C125: Sub.- 3 Seguridad Y Salud Ocupacional | D125: 10 | E125: 0 | F125: 10 | G125: 0 | H125: 0 | I125: 0 | J125: 0 | K125: 10 | L125: 10 | M125: 0 | N125: =J125*100/D125 -> 0
A126: 5.3.08.02.01 | B126: Vestuario Y Lenceria | C126: Sub.- 3 Seguridad Y Salud Ocupacional | D126: 3580 | E126: 0 | F126: 3580 | G126: 0 | H126: 0 | I126: 0 | J126: 0 | K126: 3580 | L126: 3580 | M126: 0 | N126: =J126*100/D126 -> 0
A127: 5.3.08.03 | B127: Lubricantes | C127: Sub.- 3 Seguridad Y Salud Ocupacional | D127: 20 | E127: 0 | F127: 20 | G127: 0 | H127: 0 | I127: 0 | J127: 0 | K127: 20 | L127: 20 | M127: 0 | N127: =J127*100/D127 -> 0
A128: 5.3.08.04 | B128: Materiales De Oficina | C128: Sub.- 3 Seguridad Y Salud Ocupacional | D128: 100 | E128: 0 | F128: 100 | G128: 0 | H128: 0 | I128: 0 | J128: 0 | K128: 100 | L128: 100 | M128: 0 | N128: =J128*100/D128 -> 0
A129: 5.3.08.05 | B129: Materiales De Aseo | C129: Sub.- 3 Seguridad Y Salud Ocupacional | D129: 100 | E129: 0 | F129: 100 | G129: 0 | H129: 0 | I129: 0 | J129: 0 | K129: 100 | L129: 100 | M129: 0 | N129: =J129*100/D129 -> 0
A130: 5.3.08.07 | B130: Materiales De Impresión, Fotografía, Reproducción Y Publicaciones | C130: Sub.- 3 Seguridad Y Salud Ocupacional | D130: 800 | E130: 0 | F130: 800 | G130: 39.39 | H130: 39.39 | I130: 39.39 | J130: 39.39 | K130: 760.61 | L130: 760.61 | M130: 0 | N130: 4.92
A131: 5.3.08.08 | B131: Instrumental Médico Menor | C131: Sub.- 3 Seguridad Y Salud Ocupacional | D131: 750 | E131: 0 | F131: 750 | G131: 0 | H131: 0 | I131: 0 | J131: 0 | K131: 750 | L131: 750 | M131: =+I131-J131 -> 0 | N131: =J131*100/D131 -> 0
A132: 5.3.08.09 | B132: Medicamentos | C132: Sub.- 3 Seguridad Y Salud Ocupacional | D132: 2000 | E132: 0 | F132: 2000 | G132: 1258.5 | H132: 1258.5 | I132: 0 | J132: 0 | K132: 741.5 | L132: 2000 | M132: 0 | N132: =J132*100/D132 -> 0
A133: 5.3.08.11 | B133: Materiales De Construcción, Eléctricos, Plomería Y Carpintería | C133: Sub.- 3 Seguridad Y Salud Ocupacional | D133: 125 | E133: 0 | F133: 125 | G133: 90.6 | H133: 90.6 | I133: 90.6 | J133: 90.6 | K133: 34.4 | L133: 34.4 | M133: 0 | N133: =J133*100/D133 -> 72.48
A134: 5.3.08.12 | B134: Materiales Didácticos | C134: Sub.- 3 Seguridad Y Salud Ocupacional | D134: 100 | E134: 0 | F134: 100 | G134: 0 | H134: 0 | I134: 0 | J134: 0 | K134: 100 | L134: 100 | M134: 0 | N134: =J134*100/D134 -> 0
A135: 5.3.08.13 | B135: Repuestos Y Accesorios | C135: Sub.- 3 Seguridad Y Salud Ocupacional | D135: 15000 | E135: 0 | F135: 15000 | G135: 8.7 | H135: 8.7 | I135: 8.7 | J135: 8.7 | K135: 14991.3 | L135: 14991.3 | M135: 0 | N135: =J135*100/D135 -> 0.06
A136: 5.3.08.19 | B136: Accesorios E Insumos Quimicos,Organicos | C136: Sub.- 3 Seguridad Y Salud Ocupacional | D136: 200 | E136: 0 | F136: 200 | G136: 0 | H136: 0 | I136: 0 | J136: 0 | K136: 200 | L136: 200 | M136: 0 | N136: =J136*100/D136 -> 0
A137: 5.3.08.26 | B137: Dispositivos Médicos De Uso General | C137: Sub.- 3 Seguridad Y Salud Ocupacional | D137: 2000 | E137: 0 | F137: 2000 | G137: 0 | H137: 0 | I137: 0 | J137: 0 | K137: 2000 | L137: 2000 | M137: 0 | N137: =J137*100/D137 -> 0
A138: 5.3.14.03 | B138: Mobiliarios | C138: Sub.- 3 Seguridad Y Salud Ocupacional | D138: 1500 | E138: 0 | F138: 1500 | G138: 0 | H138: 0 | I138: 0 | J138: 0 | K138: 1500 | L138: 1500 | M138: 0 | N138: =J138*100/D138 -> 0
A139: 5.3.14.06 | B139: Herramientas Y Equipos Menores | C139: Sub.- 3 Seguridad Y Salud Ocupacional | D139: 1500 | E139: 0 | F139: 1500 | G139: 811.12 | H139: 811.12 | I139: 0 | J139: 0 | K139: 688.88 | L139: 1500 | M139: 0 | N139: =J139*100/D139 -> 0
A140: 5.3.14.07 | B140: Equipos, Sistemas Y Paquetes Informáticos | C140: Sub.- 3 Seguridad Y Salud Ocupacional | D140: 100 | E140: 0 | F140: 100 | G140: 0 | H140: 0 | I140: 0 | J140: 0 | K140: 100 | L140: 100 | M140: 0 | N140: =J140*100/D140 -> 0
A141: 5.7.01.02.01 | B141: Tasas Generales, Impuestos, Contribuciones, Permisos, Licencias Y Patentes | C141: Sub.- 3 Seguridad Y Salud Ocupacional | D141: 50 | E141: 0 | F141: 50 | G141: 0 | H141: 0 | I141: 0 | J141: 0 | K141: 50 | L141: 50 | M141: 0 | N141: =J141*100/D141 -> 0
A142: 5.7.02.01.01 | B142: Segruro (Personal) | C142: Sub.- 3 Seguridad Y Salud Ocupacional | D142: 20 | E142: 0 | F142: 20 | G142: 10 | H142: 10 | I142: 10 | J142: 10 | K142: 10 | L142: 10 | M142: 0 | N142: 50.00
A143: 5.7.02.01.02 | B143: Seguros (Bienes) | C143: Sub.- 3 Seguridad Y Salud Ocupacional | D143: 700 | E143: 0 | F143: 700 | G143: 700 | H143: 700 | I143: 700 | J143: 700 | K143: 0 | L143: 0 | M143: 0 | N143: =J143*100/D143 -> 100.00
A144: 8.4.01.03.01 | B144: Mobiliario | C144: Sub.- 3 Seguridad Y Salud Ocupacional | D144: 500 | E144: 0 | F144: 500 | G144: 390 | H144: 390 | I144: 390 | J144: 390 | K144: 110 | L144: 110 | M144: 0 | N144: =J144*100/D144 -> 78.00
A145: 8.4.01.04.01 | B145: Maquinaria Y Equipo | C145: Sub.- 3 Seguridad Y Salud Ocupacional | D145: 500 | E145: 0 | F145: 500 | G145: 0 | H145: 0 | I145: 0 | J145: 0 | K145: 500 | L145: 500 | M145: 0 | N145: =J145*100/D145 -> 0
A146: 8.4.01.07.01 | B146: Equipos, Sistemas Y Paquetes Informáticos | C146: Sub.- 3 Seguridad Y Salud Ocupacional | D146: 1300 | E146: 1700 | F146: 3000 | G146: 2918 | H146: 2918 | I146: 2208 | J146: 2208 | K146: 82 | L146: 792 | M146: 0 | N146: =J146*100/D146 -> 169.85
A147: 8.4.01.13 | B147: Equipos Médicos | C147: Sub.- 3 Seguridad Y Salud Ocupacional | D147: 4500 | E147: -1700 | F147: 2800 | G147: 765 | H147: 765 | I147: 0 | J147: 0 | K147: 2035 | L147: 2800 | M147: 0 | N147: =J147*100/D147 -> 0
A148: 5.1.01.05 | B148: Remuneraciones Unificadas | C148: Subgrupo 1.- Administracion Financiera | D148: 131112 | E148: 0 | F148: 131112 | G148: 99624.6 | H148: 99624.6 | I148: 86779 | J148: 87108.08 | K148: 31487.4 | L148: 44333 | M148: -329.08 | N148: =J148*100/D148 -> 66.44
A149: 5.1.02.03.01 | B149: Decimotercer Sueldo (Personal Permanente) | C149: Subgrupo 1.- Administracion Financiera | D149: 10926 | E149: 682.31 | F149: 11608.31 | G149: 682.31 | H149: 682.31 | I149: 682.31 | J149: 682.31 | K149: 10926 | L149: 10926 | M149: 0 | N149: =J149*100/D149 -> 6.24
A150: 5.1.02.03.02 | B150: Decimotercer Sueldo (Personal Eventual) | C150: Subgrupo 1.- Administracion Financiera | D150: 1442 | E150: 0 | F150: 1442 | G150: 0 | H150: 0 | I150: 0 | J150: 0 | K150: 1442 | L150: 1442 | M150: 0 | N150: =J150*100/D150 -> 0
A151: 5.1.02.04.01 | B151: Decimocuarto Sueldo (Personal Permanente) | C151: Subgrupo 1.- Administracion Financiera | D151: 6650 | E151: 0 | F151: 6650 | G151: 5995.3 | H151: 5995.3 | I151: 5995.3 | J151: 5995.3 | K151: 654.7 | L151: 654.7 | M151: 0 | N151: 90.15
A152: 5.1.02.04.02 | B152: Decimocuarto Sueldo (Personal Eventual) | C152: Subgrupo 1.- Administracion Financiera | D152: 950 | E152: 0 | F152: 950 | G152: 920 | H152: 920 | I152: 920 | J152: 920 | K152: 30 | L152: 30 | M152: 0 | N152: =J152*100/D152 -> 96.84
A153: 5.1.05.10 | B153: Servicios Personales Por Contrato | C153: Subgrupo 1.- Administracion Financiera | D153: 17304 | E153: 0 | F153: 17304 | G153: 14348.78 | H153: 14348.78 | I153: 11344.67 | J153: 11061.13 | K153: 2955.22 | L153: 5959.33 | M153: 283.54 | N153: =J153*100/D153 -> 63.92
A154: 5.1.05.12 | B154: Subrogacion | C154: Subgrupo 1.- Administracion Financiera | D154: 100 | E154: 0 | F154: 100 | G154: 0 | H154: 0 | I154: 0 | J154: 0 | K154: 100 | L154: 100 | M154: 0 | N154: =J154*100/D154 -> 0
A155: 5.1.05.13 | B155: Encargos | C155: Subgrupo 1.- Administracion Financiera | D155: 100 | E155: 0 | F155: 100 | G155: 0 | H155: 0 | I155: 0 | J155: 0 | K155: 100 | L155: 100 | M155: 0 | N155: =J155*100/D155 -> 0
A156: 5.1.06.01.01 | B156: Aporte Patronal (Personal Permanente) | C156: Subgrupo 1.- Administracion Financiera | D156: 15274.55 | E156: 0 | F156: 15274.55 | G156: 12021.77 | H156: 12021.77 | I156: 10619.58 | J156: 10109.78 | K156: 3252.78 | L156: 4654.97 | M156: 509.8 | N156: =J156*100/D156 -> 66.19
A157: 5.1.06.01.02 | B157: Aporte Patronal (Personal Eventual) | C157: Subgrupo 1.- Administracion Financiera | D157: 2016 | E157: 0 | F157: 2016 | G157: 1579.1 | H157: 1579.1 | I157: 1243.12 | J157: 1227.43 | K157: 436.9 | L157: 772.88 | M157: 15.69 | N157: 60.88
A158: 5.1.06.02.01 | B158: Fondos De Reserva (Personal Permanente) | C158: Subgrupo 1.- Administracion Financiera | D158: 10926 | E158: 0 | F158: 10926 | G158: 6400.51 | H158: 6400.51 | I158: 6400.51 | J158: 6400.51 | K158: 4525.49 | L158: 4525.49 | M158: 0 | N158: =J158*100/D158 -> 58.58
A159: 5.1.06.02.02 | B159: Fondos De Reserva (Personal Eventual) | C159: Subgrupo 1.- Administracion Financiera | D159: 1442 | E159: 0 | F159: 1442 | G159: 1065.25 | H159: 1065.25 | I159: 945.14 | J159: 945.14 | K159: 376.75 | L159: 496.86 | M159: 0 | N159: =J159*100/D159 -> 65.54
A160: 5.1.07.07 | B160: Compensacion Por Vacaciones No Gozadas Por Cesacion De Funciones | C160: Subgrupo 1.- Administracion Financiera | D160: 2500 | E160: 0 | F160: 2500 | G160: 2220 | H160: 2220 | I160: 2220 | J160: 2220 | K160: 280 | L160: 280 | M160: 0 | N160: =J160*100/D160 -> 88.80
A161: 5.3.01.01 | B161: Agua Potable | C161: Subgrupo 1.- Administracion Financiera | D161: 100 | E161: 0 | F161: 100 | G161: 4.06 | H161: 4.06 | I161: 0 | J161: 0 | K161: 95.94 | L161: 100 | M161: 0 | N161: =J161*100/D161 -> 0
A162: 5.3.01.04 | B162: Energía Eléctrica | C162: Subgrupo 1.- Administracion Financiera | D162: 1100 | E162: 0 | F162: 1100 | G162: 300 | H162: 300 | I162: 0 | J162: 0 | K162: 800 | L162: 1100 | M162: 0 | N162: =J162*100/D162 -> 0
A163: 5.3.01.05 | B163: Telecomunicaciones | C163: Subgrupo 1.- Administracion Financiera | D163: 3500 | E163: 5300 | F163: 8800 | G163: 6253.94 | H163: 6253.94 | I163: 5497.74 | J163: 5497.74 | K163: 2546.06 | L163: 3302.26 | M163: 0 | N163: 157.08
A164: 5.3.01.06 | B164: Servicio De Correo | C164: Subgrupo 1.- Administracion Financiera | D164: 100 | E164: 0 | F164: 100 | G164: 0 | H164: 0 | I164: 0 | J164: 0 | K164: 100 | L164: 100 | M164: 0 | N164: =J164*100/D164 -> 0
A165: 5.3.02.04 | B165: Edición, Impresión, Reproducción Y Publicaciones | C165: Subgrupo 1.- Administracion Financiera | D165: 5500 | E165: 0 | F165: 5500 | G165: 675.04 | H165: 675.04 | I165: 652.04 | J165: 652.04 | K165: 4824.96 | L165: 4847.96 | M165: 0 | N165: =J165*100/D165 -> 11.86
A166: 5.3.02.07 | B166: Difusión, Información Y Publicidad | C166: Subgrupo 1.- Administracion Financiera | D166: 100 | E166: 0 | F166: 100 | G166: 0 | H166: 0 | I166: 0 | J166: 0 | K166: 100 | L166: 100 | M166: 0 | N166: =J166*100/D166 -> 0
A167: 5.3.02.55 | B167: Combustible | C167: Subgrupo 1.- Administracion Financiera | D167: 800 | E167: 0 | F167: 800 | G167: 160 | H167: 160 | I167: 160 | J167: 160 | K167: 640 | L167: 640 | M167: 0 | N167: =J167*100/D167 -> 20.00
A168: 5.3.03.01 | B168: Pasajes Al Interior | C168: Subgrupo 1.- Administracion Financiera | D168: 50 | E168: 0 | F168: 50 | G168: 0 | H168: 0 | I168: 0 | J168: 0 | K168: 50 | L168: 50 | M168: 0 | N168: 0
A169: 5.3.03.03 | B169: Viáticos Y Subsistencias En El Interior | C169: Subgrupo 1.- Administracion Financiera | D169: 100 | E169: 0 | F169: 100 | G169: 0 | H169: 0 | I169: 0 | J169: 0 | K169: 100 | L169: 100 | M169: 0 | N169: =J169*100/D169 -> 0
A170: 5.3.04.03 | B170: Mobiliarios | C170: Subgrupo 1.- Administracion Financiera | D170: 600 | E170: 0 | F170: 600 | G170: 0 | H170: 0 | I170: 0 | J170: 0 | K170: 600 | L170: 600 | M170: 0 | N170: =J170*100/D170 -> 0
A171: 5.3.06.12 | B171: Capacitación A Servidores Públicos | C171: Subgrupo 1.- Administracion Financiera | D171: 800 | E171: 0 | F171: 800 | G171: 461.5 | H171: 461.5 | I171: 461.5 | J171: 461.5 | K171: 338.5 | L171: 338.5 | M171: 0 | N171: =J171*100/D171 -> 57.69
A172: 5.3.07.04 | B172: Mantenimiento Y Reparación De Equipos Y Sistemas Informáticos | C172: Subgrupo 1.- Administracion Financiera | D172: 100 | E172: 0 | F172: 100 | G172: 0 | H172: 0 | I172: 0 | J172: 0 | K172: 100 | L172: 100 | M172: 0 | N172: =J172*100/D172 -> 0
A173: 5.3.08.02.01 | B173: Vestuario Y Lenceria | C173: Subgrupo 1.- Administracion Financiera | D173: 2800 | E173: 0 | F173: 2800 | G173: 0 | H173: 0 | I173: 0 | J173: 0 | K173: 2800 | L173: 2800 | M173: 0 | N173: =J173*100/D173 -> 0
A174: 5.3.08.03 | B174: Lubricantes | C174: Subgrupo 1.- Administracion Financiera | D174: 50 | E174: 0 | F174: 50 | G174: 0 | H174: 0 | I174: 0 | J174: 0 | K174: 50 | L174: 50 | M174: 0 | N174: 0
A175: 5.3.08.04 | B175: Materiales de Oficina | C175: Subgrupo 1.- Administracion Financiera | D175: 16000 | E175: 0 | F175: 16000 | G175: 12154.73 | H175: 12154.73 | I175: 11093.18 | J175: 11093.18 | K175: 3845.27 | L175: 4906.82 | M175: 0 | N175: =J175*100/D175 -> 69.33
A176: 5.3.08.07 | B176: Materiales De Impresión, Fotografía, Reproducción Y Publicaciones | C176: Subgrupo 1.- Administracion Financiera | D176: 1500 | E176: -500 | F176: 1000 | G176: 876.65 | H176: 876.65 | I176: 97.65 | J176: 97.65 | K176: 123.35 | L176: 902.35 | M176: 0 | N176: =J176*100/D176 -> 6.51
A177: 5.3.08.11 | B177: Materiales De Construcción, Eléctricos, Plomería Y Carpintería | C177: Subgrupo 1.- Administracion Financiera | D177: 250 | E177: 0 | F177: 250 | G177: 54 | H177: 54 | I177: 54 | J177: 54 | K177: 196 | L177: 196 | M177: 0 | N177: 21.60
A178: 5.3.08.13 | B178: Repuestos Y Accesorios | C178: Subgrupo 1.- Administracion Financiera | D178: 50 | E178: 0 | F178: 50 | G178: 20 | H178: 20 | I178: 20 | J178: 20 | K178: 30 | L178: 30 | M178: 0 | N178: =J178*100/D178 -> 40.00
A179: 5.3.14.04 | B179: Maquinarias Y Equipos | C179: Subgrupo 1.- Administracion Financiera | D179: 10 | E179: 0 | F179: 10 | G179: 0 | H179: 0 | I179: 0 | J179: 0 | K179: 10 | L179: 10 | M179: 0 | N179: =J179*100/D179 -> 0
A180: 5.3.14.07 | B180: Equipos, Sistemas y Paquetes Informáticos | C180: Subgrupo 1.- Administracion Financiera | D180: 10 | E180: 0 | F180: 10 | G180: 0 | H180: 0 | I180: 0 | J180: 0 | K180: 10 | L180: 10 | M180: 0 | N180: =J180*100/D180 -> 0
A181: 5.6.01.06 | B181: Descuentos, Comisiones y Otros Cargos en Títulos y Valores | C181: Subgrupo 1.- Administracion Financiera | D181: 5158.97 | E181: 16318.16 | F181: 21477.13 | G181: 11659.96 | H181: 11659.96 | I181: 11625.71 | J181: 11625.71 | K181: 9817.17 | L181: 9851.42 | M181: 0 | N181: =J181*100/D181 -> 225.35
A182: 5.7.02.01.01 | B182: Segruro (Personal) | C182: Subgrupo 1.- Administracion Financiera | D182: 800 | E182: 0 | F182: 800 | G182: 800 | H182: 800 | I182: 800 | J182: 800 | K182: 0 | L182: 0 | M182: 0 | N182: 100.00
A183: 5.7.02.01.02 | B183: Seguros (Bienes) | C183: Subgrupo 1.- Administracion Financiera | D183: 1000 | E183: 0 | F183: 1000 | G183: 1000 | H183: 1000 | I183: 1000 | J183: 1000 | K183: 0 | L183: 0 | M183: 0 | N183: =J183*100/D183 -> 100.00
A184: 5.7.02.03 | B184: Comisiones Bancarias | C184: Subgrupo 1.- Administracion Financiera | D184: 1500 | E184: 600 | F184: 2100 | G184: 1564.98 | H184: 1564.98 | I184: 1458.19 | J184: 1458.19 | K184: 535.02 | L184: 641.81 | M184: 0 | N184: =J184*100/D184 -> 97.21
A185: 5.7.02.19 | B185: Devoluciones | C185: Subgrupo 1.- Administracion Financiera | D185: 2500 | E185: -500 | F185: 2000 | G185: 483.28 | H185: 483.28 | I185: 369.28 | J185: 369.28 | K185: 1516.72 | L185: 1630.72 | M185: 0 | N185: =J185*100/D185 -> 14.77
A186: 8.4.01.03.01 | B186: Mobiliario | C186: Subgrupo 1.- Administracion Financiera | D186: 1500 | E186: 0 | F186: 1500 | G186: 1430 | H186: 1430 | I186: 1430 | J186: 1430 | K186: 70 | L186: 70 | M186: 0 | N186: 95.33
A187: 8.4.01.04.01 | B187: Maquinaria Y Equipo | C187: Subgrupo 1.- Administracion Financiera | D187: 200 | E187: 0 | F187: 200 | G187: 0 | H187: 0 | I187: 0 | J187: 0 | K187: 200 | L187: 200 | M187: 0 | N187: =J187*100/D187 -> 0
A188: 8.4.01.07.01 | B188: Equipos, Sistemas Y Paquetes Informáticos | C188: Subgrupo 1.- Administracion Financiera | D188: 8200 | E188: 0 | F188: 8200 | G188: 5082.14 | H188: 5082.14 | I188: 3578 | J188: 3552.34 | K188: 3117.86 | L188: 4622 | M188: 25.66 | N188: =J188*100/D188 -> 43.32
A189: 5.1.01.05 | B189: Remuneraciones Unificadas | C189: Subgrupo 2.- Registro De La Propiedad | D189: 52512 | E189: 0 | F189: 52512 | G189: 38884.6 | H189: 38884.6 | I189: 34508.6 | J189: 34907.69 | K189: 13627.4 | L189: 18003.4 | M189: -399.09 | N189: =J189*100/D189 -> 66.48
A190: 5.1.02.03.01 | B190: Decimotercer Sueldo (Personal Permanente) | C190: Subgrupo 2.- Registro De La Propiedad | D190: 4376 | E190: 1299.53 | F190: 5675.53 | G190: 1351.36 | H190: 1351.36 | I190: 1299.53 | J190: 1299.53 | K190: 4324.17 | L190: 4376 | M190: 0 | N190: =J190*100/D190 -> 29.70
A191: 5.1.02.04.01 | B191: Decimocuarto Sueldo (Personal Permanente) | C191: Subgrupo 2.- Registro De La Propiedad | D191: 2375 | E191: 0 | F191: 2375 | G191: 2348.52 | H191: 2348.52 | I191: 2310.19 | J191: 2310.19 | K191: 26.48 | L191: 64.81 | M191: 0 | N191: 97.27
A192: 5.1.05.10 | B192: Servicios Personales Por Contrato | C192: Subgrupo 2.- Registro De La Propiedad | D192: 100 | E192: 0 | F192: 100 | G192: 0 | H192: 0 | I192: 0 | J192: 0 | K192: 100 | L192: 100 | M192: 0 | N192: =J192*100/D192 -> 0
A193: 5.1.05.12 | B193: Subrogacion | C193: Subgrupo 2.- Registro De La Propiedad | D193: 1500 | E193: 0 | F193: 1500 | G193: 41.66 | H193: 41.66 | I193: 0 | J193: 0 | K193: 1458.34 | L193: 1500 | M193: 0 | N193: =J193*100/D193 -> 0
A194: 5.1.05.13 | B194: Encargos | C194: Subgrupo 2.- Registro De La Propiedad | D194: 500 | E194: 0 | F194: 500 | G194: 0 | H194: 0 | I194: 0 | J194: 0 | K194: 500 | L194: 500 | M194: 0 | N194: =J194*100/D194 -> 0
A195: 5.1.06.01.01 | B195: Aporte Patronal (Personal Permanente) | C195: Subgrupo 2.- Registro De La Propiedad | D195: 6117.65 | E195: 0 | F195: 6117.65 | G195: 3515.08 | H195: 3515.08 | I195: 3000.63 | J195: 4020.23 | K195: 2602.57 | L195: 3117.02 | M195: =+I195-J195 -> -1019.6 | N195: =J195*100/D195 -> 65.72
A196: 5.1.06.02.01 | B196: Fondos De Reserva (Personal Permanente) | C196: Subgrupo 2.- Registro De La Propiedad | D196: 4376 | E196: 0 | F196: 4376 | G196: 2931.91 | H196: 2931.91 | I196: 2548.62 | J196: 2323.13 | K196: 1444.09 | L196: 1827.38 | M196: 225.49 | N196: =J196*100/D196 -> 53.09
A197: 5.1.07.07 | B197: Compensacion Por Vacaciones No Gozadas Por Cesacion De Funciones | C197: Subgrupo 2.- Registro De La Propiedad | D197: 1920 | E197: 0 | F197: 1920 | G197: 960 | H197: 960 | I197: 960 | J197: 960 | K197: 960 | L197: 960 | M197: 0 | N197: =J197*100/D197 -> 50.00
A198: 5.3.01.06 | B198: Servicio De Correo | C198: Subgrupo 2.- Registro De La Propiedad | D198: 100 | E198: 0 | F198: 100 | G198: 0 | H198: 0 | I198: 0 | J198: 0 | K198: 100 | L198: 100 | M198: 0 | N198: =J198*100/D198 -> 0
A199: 5.3.02.04 | B199: Edición, Impresión, Reproducción Y Publicaciones | C199: Subgrupo 2.- Registro De La Propiedad | D199: 500 | E199: 0 | F199: 500 | G199: 247.87 | H199: 247.87 | I199: 149.87 | J199: 149.87 | K199: 252.13 | L199: 350.13 | M199: 0 | N199: =J199*100/D199 -> 29.97
A200: 5.3.02.07 | B200: Difusión, Información Y Publicidad | C200: Subgrupo 2.- Registro De La Propiedad | D200: 100 | E200: 0 | F200: 100 | G200: 0 | H200: 0 | I200: 0 | J200: 0 | K200: 100 | L200: 100 | M200: 0 | N200: =J200*100/D200 -> 0
... 829 more rows

Sheet Metadatos
A1: FECHA ACTUALIZACIÓN DE LA INFORMACIÓN | B1: 2024-10-31
A2: PERIODICIDAD DE ACTUALIZACIÓN DE LA INFORMACIÓN | B2: MENSUAL
A3: UNIDAD POSEEDORA DE LA INFORMACIÓN | B3: ÁREA FINANIERA
A4: PERSONA RESPONSABLE DE LA UNIDAD POSEEDORA DE LA INFORMACIÓN | B4: Ing. Cristina Escudero
A5: CORREO ELECTRÓNICO DE LA PERSONA RESPONSABLE DE LA UNIDAD POSEEDORA DE LA INFORMACIÓN | B5: gadmch.financiero@gmail.com
A6: NÚMERO TELEFÓNICO DE LA PERSONA RESPONSABLE DE LA UNIDAD POSEEDORA DE LA INFORMACIÓN | B6: (03) 2936-244-245 EXTENSIÓN 108
A7: LICENCIA | B7: CC-BY-4.0

Sheet Diccionario
A1: Institución | B1: GAD Municipal de Chunchi
A2: Descripcion | B2: Presupuesto Institucional
A3: Nombre del campo | B3: Descripcion de campo
A4: Cuenta | B4: Codigo identificador asignado a la categoria; descripcion o partida presupuestaria
A5: Categoria | B5: Categoria a la que pertenece el elemento presupuestario
A6: Descripcion | B6: Descripcion del elemento presupuestario
A7: Asignado | B7: Monto inicialmente asignado al elemento presupuestario
A8: Modificado | B8: Monto modificado o ajustado posteriormente al elemento presupuestario
A9: Codificado | B9: Monto codificado o asignado especificamente al elemento presupuestario
A10: Monto certificado | B10: Monto certificado o aprobado para el elemento presupuestario
A11: Comprometido | B11: Monto comprometido o reservado para el elemento presupuestario
A12: Devengado | B12: Monto devengado o registrado como gasto efectuado en relacion al elemento presupuestario
A13: Pagado | B13: Monto pagado o desembolsado hasta la fecha en relacion al elemento presupuestario
A14: Saldo por comprometer | B14: Saldo restante por comprometer o reservar para el elemento presupuestario
A15: Saldo por devengar | B15: Saldo restante por devengar o registrar como gasto en relacion al elemento presupuestario
A16: Saldo por pagar | B16: Saldo restante por pagar o desembolsar en relacion al elemento presupuestario
A17: Porcentaje de ejecucion | B17: Porcentaje de ejecucion o avance del gasto en relacion al monto total asignado al elemento presupuestario
